bitfinex/quotes_ETHUSD_20240816
["timestamp","ask_amount","ask_price","bid_price","bid_amount"]
[1723845940598,0.55,2607.6,2607.3,3.0]
[1723845941489,2.3885,2607.5,2607.3,3.0]
[1723845941696,0.84385,2607.4,2607.3,3.0]
[1723845942218,0.91943179,2607.4,2607.3,3.0]
[1723845944106,0.55,2607.4,2607.3,3.0]
[1723845944407,0.55,2607.6,2607.3,3.0]
[1723845944586,0.07464133,2607.5,2607.3,3.0]
[1723845944790,0.55,2607.4,2607.3,3.0]
[1723845944989,0.62452513,2607.4,2607.3,3.0]
[1723845946200,3.03942513,2607.4,2607.3,3.0]
[1723845946418,3.34336764,2607.4,2607.3,3.0]
[1723845947716,3.26884251,2607.4,2607.3,3.0]
[1723845948017,3.34336764,2607.4,2607.3,3.0]
[1723845949312,3.47018013,2607.4,2607.3,3.0]
[1723845950149,3.34336764,2607.4,2607.3,3.0]
[1723845950447,3.47017667,2607.4,2607.3,3.0]
[1723845951307,3.16623416,2607.4,2607.3,3.0]
[1723845952949,2.4149,2607.3,2606.8,7.32]
[1723845953165,0.7,2607.1,2606.8,7.32]
[1723845953321,2.99335987,2607.0,2606.8,7.32]
[1723845953650,2.99335987,2607.0,2606.6,3.973]
[1723845953651,0.12682672,2606.9,2606.6,3.973]
[1723845953855,0.67682672,2606.8,2606.6,3.973]
[1723845954148,0.98489924,2606.8,2606.7,3.0]
[1723845954304,1.11174668,2606.8,2606.7,3.0]
[1723845954741,1.11174668,2606.8,2606.6,3.973]
[1723845954954,0.12684744,2606.7,2606.6,3.973]
[1723845955111,0.67684744,2606.7,2606.6,3.973]
[1723845955457,0.74997111,2606.7,2606.6,3.973]
[1723845956108,0.74997111,2606.7,2606.6,6.973]
[1723845956992,0.74996772,2606.7,2606.6,6.973]
[1723845957525,0.74996761,2606.7,2606.6,6.973]
[1723845958774,0.19996761,2606.7,2606.6,10.80941]
[1723845960328,0.19996761,2606.7,2606.6,6.973]
[1723845960820,0.12683963,2606.7,2606.6,6.973]
[1723845961028,0.20056841,2606.7,2606.6,6.973]
[1723845961224,0.75056841,2606.7,2606.6,6.973]
[1723845961637,3.86546841,2606.7,2606.6,3.0]
[1723845961926,3.86546841,2606.7,2606.1,3.83703]
[1723845961927,2.4149,2606.6,2606.0,3.973]
[1723845962133,0.12686401,2606.5,2606.0,3.973]
[1723845962332,0.12686401,2606.4,2606.0,3.973]
[1723845962632,0.20012765,2606.3,2606.0,3.973]
[1723845962927,0.67686401,2606.2,2606.0,3.973]
[1723845963108,0.12686401,2606.1,2606.0,3.973]
[1723845963311,0.19988785,2606.1,2606.0,3.973]
[1723845964332,0.19988785,2606.1,2606.0,7.81029]
[1723845964488,0.19988785,2606.1,2606.0,10.81029]
[1723845965432,0.07302384,2606.1,2606.0,14.64758]
[1723845965595,2.4149,2606.6,2606.3,3.8368]
[1723845965799,0.74966587,2606.5,2606.4,6.973]
[1723845965998,0.74966587,2606.5,2606.1,7.81004]
[1723845966312,0.62280804,2606.5,2606.4,3.0]
[1723845966485,0.74966936,2606.5,2606.3,3.0]
[1723845966686,0.12686132,2606.4,2606.3,3.0]
[1723845966888,0.67686132,2606.4,2606.3,3.0]
[1723845967935,0.67686128,2606.4,2606.3,3.0]
[1723845968637,0.1268624,2606.4,2606.3,6.83685]
[1723845968806,0.1268624,2606.4,2606.3,11.18276221]
[1723845969142,0.07280804,2606.5,2606.4,7.6734]
[1723845969312,3.2345792,2607.1,2606.6,3.8364]
[1723845969510,0.12684144,2607.0,2606.7,6.83622]
[1723845969710,0.12682479,2606.9,2606.8,11.64514]
[1723845969945,0.12682479,2606.9,2606.8,10.80903]
[1723845970240,0.12682479,2606.9,2606.8,3.0]
[1723845970448,2.4311,2606.8,2606.5,3.973]
[1723845970613,0.12682479,2606.7,2606.6,3.0]
[1723845970807,0.67682479,2606.7,2606.6,3.0]
[1723845971636,0.67682479,2606.7,2606.6,6.83641]
[1723845971637,0.12682479,2606.7,2606.6,6.83641]
[1723845971938,2.4311,2607.0,2606.6,6.83641]
[1723845972111,0.12683338,2606.9,2606.6,6.83641]
[1723845972437,0.12683338,2606.8,2606.6,6.83641]
[1723845972739,2.4311,2607.0,2606.7,3.83626]
[1723845972905,0.67683253,2606.9,2606.8,3.0]
[1723845973242,0.67683253,2606.9,2606.8,10.80912]
[1723845973537,0.67683253,2606.9,2606.8,6.973]
[1723845973745,0.67683253,2606.9,2606.8,3.0]
[1723845973902,0.67683253,2606.9,2606.6,3.0]
[1723845974102,0.12683253,2606.8,2606.6,3.0]
[1723845974299,0.55,2606.7,2606.6,3.0]
[1723845974527,0.67683253,2606.7,2606.6,3.0]
[1723845976174,0.67684079,2606.7,2606.6,3.0]
[1723845976520,0.74989958,2606.7,2606.6,3.0]
[1723845977141,0.19989958,2606.7,2606.6,10.67282]
[1723845977363,0.07305879,2606.7,2606.6,10.67282]
[1723845977721,0.81698005,2607.2,2606.8,3.83611]
[1723845977925,0.67682488,2607.1,2606.9,3.0]
[1723845978125,0.12682488,2607.0,2606.9,3.0]
[1723845978318,0.67682488,2607.0,2606.9,3.0]
[1723845978521,0.75010122,2607.0,2606.9,3.0]
[1723845979873,0.20010122,2607.0,2606.9,10.67194]
[1723845980233,0.07327634,2607.0,2606.9,10.67194]
[1723845980738,0.8034792,2607.4,2607.1,3.83561]
[1723845981063,0.19704281,2607.3,2607.2,3.0]
[1723845981621,0.74704281,2607.3,2607.2,3.0]
[1723845981824,1.55052201,2607.3,2607.2,3.0]
[1723845982085,2.1389046,2607.3,2607.0,3.0]
[1723845982284,0.67681261,2607.2,2607.0,3.0]
[1723845982580,0.12681261,2607.1,2607.0,3.0]
[1723845982885,0.67681261,2607.1,2607.0,3.0]
[1723845983661,0.74665802,2607.1,2607.0,3.0]
[1723845983832,0.19665802,2607.1,2607.0,10.67164]
[1723845984455,0.19665689,2607.1,2607.0,10.67164]
[1723845985225,0.06984541,2607.1,2607.0,10.67164]
[1723845985525,0.8034792,2607.5,2607.3,3.83531]
[1723845985723,0.8034792,2607.6,2607.4,3.83514]
[1723845986043,3.1940792,2607.7,2607.5,3.0]
[1723845986242,1.48027846,2607.6,2607.5,3.0]
[1723845987139,1.48027846,2607.6,2607.4,3.0]
[1723845987339,0.12679926,2607.5,2607.4,3.0]
[1723845987548,0.67679926,2607.5,2607.4,3.0]
[1723845987753,0.7472673,2607.5,2607.4,3.0]
[1723845988764,0.62046804,2607.5,2607.4,3.0]
[1723845989085,0.74727208,2607.5,2607.4,3.0]
[1723845990403,0.62046804,2607.5,2607.4,3.0]
[1723845990558,0.74727313,2607.5,2607.4,3.0]
[1723845991505,0.62046804,2607.5,2607.4,3.0]
[1723845991636,4.36754802,2607.5,2606.7,15.12917]
[1723845991838,3.22171071,2607.2,2606.7,15.12917]
[1723845992055,0.12680486,2607.1,2606.9,3.83594]
[1723845992255,0.55,2607.0,2606.9,3.83594]
[1723845992501,0.55,2607.0,2606.8,3.83611]
[1723845992788,0.55,2607.0,2606.7,15.12917]
[1723845992789,0.55,2607.1,2606.9,3.83597]
[1723845993092,0.55,2607.1,2607.0,3.0]
[1723845993246,0.67681948,2607.1,2607.0,3.0]
[1723845993446,0.7,2606.8,2606.3,7.32]
[1723845993642,0.7,2606.8,2606.0,3.973]
[1723845993643,3.2219276,2606.5,2606.0,3.973]
[1723845993881,1.25237225,2606.4,2606.0,3.973]
[1723845994091,1.3533276,2606.3,2606.0,3.973]
[1723845994244,0.12686913,2606.2,2606.0,3.973]
[1723845994439,0.06883654,2606.1,2606.0,3.973]
[1723845994651,0.19570567,2606.1,2606.0,7.81029]
[1723845995143,0.19570567,2606.1,2605.7,11.293]
[1723845995377,0.67688022,2606.0,2605.7,11.293]
[1723845995583,0.12688022,2605.9,2605.7,11.293]
[1723845996047,0.12688022,2605.9,2605.7,15.13073]
[1723845996657,0.12688022,2605.9,2605.8,3.0]
[1723845996960,0.67688022,2605.9,2605.8,3.0]
[1723845997573,0.55,2605.9,2605.8,3.0]
[1723845997779,0.12687746,2605.9,2605.8,3.0]
[1723845997972,0.67687746,2605.9,2605.8,3.0]
[1723845998297,0.61858588,2605.9,2605.8,3.0]
[1723845998797,0.74546392,2605.9,2605.8,3.0]
[1723845999161,0.61858588,2605.9,2605.8,3.0]
[1723845999384,0.06858588,2605.9,2605.8,3.0]
[1723845999560,0.06858588,2605.9,2605.8,6.83759]
[1723845999891,0.8033276,2606.3,2605.9,3.83742]
[1723846000200,0.67686698,2606.2,2606.0,3.0]
[1723846000489,0.12686698,2606.1,2606.0,3.0]
[1723846001757,0.19554677,2606.1,2605.9,3.0]
[1723846002073,0.06867979,2606.1,2605.9,3.0]
[1723846002566,2.48727979,2606.1,2605.9,3.0]
[1723846002768,1.55372798,2606.0,2605.8,3.0]
[1723846003080,1.55372798,2606.0,2605.2,3.83845]
[1723846003081,3.34881083,2605.9,2605.4,3.0]
[1723846003255,0.67688323,2605.8,2605.3,3.0]
[1723846003459,0.55,2605.8,2605.3,10.67656]
[1723846003782,0.55,2605.8,2605.3,3.83824]
[1723846003985,0.55,2605.8,2605.4,3.0]
[1723846005265,0.06832411,2605.7,2605.4,3.0]
[1723846005476,0.55,2605.8,2605.3,3.0]
[1723846005672,0.06832518,2605.7,2605.3,3.0]
[1723846005999,0.55,2605.8,2605.3,3.0]
[1723846006299,0.06820881,2605.6,2605.3,3.0]
[1723846006467,0.06832518,2605.7,2605.3,3.0]
[1723846006667,0.06820881,2605.6,2605.3,6.83832]
[1723846007089,0.55,2605.8,2605.3,6.83832]
[1723846007266,0.06809104,2605.5,2605.3,3.0]
[1723846007596,0.99567615,2605.8,2605.1,11.293]
[1723846007597,2.9741,2605.4,2605.1,7.32]
[1723846007901,0.55,2605.3,2605.1,7.32]
[1723846008109,2.4241,2605.2,2604.7,7.32]
[1723846008270,1.54741,2605.1,2604.5,3.83941]
[1723846008457,1.54741,2605.1,2604.4,7.67917]
[1723846008657,0.06750905,2605.0,2604.5,3.83949]
[1723846008855,0.55,2604.9,2604.5,3.83949]
[1723846009293,0.06727619,2604.8,2604.5,3.83949]
[1723846009502,0.55,2604.7,2604.4,3.83955]
[1723846009660,0.55,2604.7,2604.5,3.8394]
[1723846010157,2.4241,2605.2,2604.5,0.767895]
[1723846010396,0.55,2605.1,2604.7,3.83913]
[1723846010664,0.55,2605.1,2604.8,3.0]
[1723846014760,0.55,2605.1,2604.7,3.0]
[1723846014959,0.84741,2605.1,2604.7,3.0]
[1723846015394,2.4241,2605.0,2604.7,3.0]
[1723846015594,0.55,2604.9,2604.5,3.0]
[1723846015761,0.61738053,2604.9,2604.5,3.0]
[1723846015962,2.4241,2604.7,2604.1,3.84007]
[1723846016163,2.4241,2604.7,2604.0,3.84024]
[1723846016365,0.6170312,2604.6,2603.9,7.81338]
[1723846016600,0.9679325,2604.6,2603.9,7.81338]
[1723846016898,0.9679325,2604.6,2604.0,3.84022]
[1723846017104,0.9679325,2604.6,2604.0,3.84024]
[1723846017804,0.9679325,2604.6,2604.1,3.0]
[1723846018382,0.33920325,2604.5,2604.1,3.0]
[1723846018576,2.9741,2604.4,2604.1,3.0]
[1723846018790,3.0400883,2604.4,2604.1,3.0]
[1723846023084,2.9741,2604.4,2604.1,3.0]
[1723846023405,0.06582855,2604.3,2604.1,3.0]
[1723846023903,0.06582855,2604.3,2604.2,7.6799]
[1723846024106,2.2556,2604.7,2604.4,3.83962]
[1723846024310,2.2556,2604.7,2604.5,3.0]
[1723846024616,0.06617779,2604.6,2604.5,3.0]
[1723846025117,2.2556,2604.9,2604.5,3.0]
[1723846025413,2.2556,2605.2,2604.9,3.8388]
[1723846025615,3.69345528,2605.8,2605.0,3.0]
[1723846025616,0.7,2605.4,2605.0,3.0]
[1723846025922,2.2556,2605.2,2604.7,3.83921]
[1723846026217,2.2556,2605.2,2604.8,3.0]
[1723846026518,0.12692818,2605.1,2604.8,3.0]
[1723846026694,2.2556,2605.2,2604.8,3.0]
[1723846026892,0.67692757,2605.1,2604.8,3.0]
[1723846027217,0.55,2605.1,2604.8,3.0]
[1723846027717,0.06434398,2605.0,2604.8,3.0]
[1723846030025,0.06434398,2605.0,2604.8,6.83903]
[1723846030523,0.06434398,2605.0,2604.8,3.0]
[1723846030825,0.55,2605.1,2604.8,3.0]
[1723846031178,0.12692635,2605.0,2604.8,3.0]
[1723846031523,0.12692635,2604.9,2604.8,3.0]
[1723846031987,0.19005274,2604.9,2604.8,3.0]
[1723846032385,0.1900571,2604.9,2604.8,3.0]
[1723846032556,2.2634,2604.8,2604.4,7.32]
[1723846032744,0.12693071,2604.7,2604.3,3.8397]
[1723846033054,0.61058807,2604.7,2604.4,3.83965]
[1723846033253,0.12693869,2604.6,2604.4,3.83965]
[1723846033463,0.61058807,2604.7,2604.4,3.83965]
[1723846033644,0.06035516,2604.5,2604.4,3.83965]
[1723846033846,0.55,2604.7,2604.4,3.83965]
[1723846034068,0.06035516,2604.5,2604.4,3.83965]
[1723846034246,0.55,2604.7,2604.4,3.83965]
[1723846034584,0.12693924,2604.6,2604.5,3.0]
[1723846034788,0.55,2604.6,2604.5,3.0]
[1723846035102,0.67694007,2604.6,2604.5,3.0]
[1723846035586,0.73741169,2604.6,2604.5,3.0]
[1723846038856,0.61047162,2604.6,2604.5,3.0]
[1723846039098,0.73741119,2604.6,2604.5,3.0]
[1723846039265,0.67693957,2604.6,2604.5,3.0]
[1723846039466,1.03144735,2604.6,2604.4,3.0]
[1723846039708,0.12693957,2604.5,2604.4,3.0]
[1723846039868,0.12693957,2604.5,2604.3,3.0]
[1723846040070,0.12693957,2604.4,2604.3,3.0]
[1723846040267,2.39033957,2604.4,2604.3,3.0]
[1723846040496,2.45058046,2604.4,2604.3,3.0]
[1723846041675,3.00058046,2604.4,2604.3,3.0]
[1723846041891,3.00058046,2604.4,2604.2,3.0]
[1723846042089,0.12693957,2604.3,2604.2,3.0]
[1723846042369,0.18706452,2604.3,2604.2,3.0]
[1723846042673,0.18706452,2604.3,2604.2,6.83995]
[1723846042874,0.06012495,2604.3,2604.2,6.83995]
[1723846043199,0.12695088,2604.3,2604.2,6.83995]
[1723846043410,0.18707583,2604.3,2604.2,6.83995]
[1723846043710,0.1870761,2604.3,2604.2,6.83995]
[1723846044011,0.12695115,2604.3,2604.2,10.6799]
[1723846045803,0.18705794,2604.3,2604.2,10.6799]
[1723846046101,0.06010679,2604.3,2604.2,10.6799]
[1723846046300,0.1870552,2604.3,2604.2,10.6799]
[1723846046500,0.12694841,2604.3,2604.2,10.6799]
[1723846046671,0.1870552,2604.3,2604.2,10.6799]
[1723846047102,0.06010679,2604.3,2604.2,10.6799]
[1723846047261,0.18705551,2604.3,2604.2,10.6799]
[1723846048660,0.18705551,2604.3,2604.2,11.0643]
[1723846049092,0.06010679,2604.3,2604.2,11.0643]
[1723846049615,0.8033276,2604.8,2604.5,3.8394]
[1723846049804,0.1269361,2604.7,2604.6,3.0]
[1723846050403,0.12693569,2604.7,2604.6,3.0]
[1723846050575,0.12693569,2604.7,2604.6,6.83936]
[1723846051177,0.99083576,2604.7,2604.6,6.83936]
[1723846051572,0.99083576,2604.7,2604.6,3.0]
[1723846052103,0.99083808,2604.7,2604.6,3.0]
[1723846052608,0.18751048,2604.7,2604.6,3.0]
[1723846052811,1.39250188,2604.7,2604.6,3.0]
[1723846054365,1.39565024,2604.7,2604.5,3.0]
[1723846054581,1.33507941,2604.6,2604.5,3.0]
[1723846055003,1.39500432,2604.6,2604.5,3.0]
[1723846055504,2.2794,2604.5,2604.3,3.0]
[1723846055705,0.93244788,2604.4,2604.2,3.0]
[1723846055872,0.8651889,2604.4,2604.3,1.659]
[1723846056201,0.18664358,2604.4,2604.3,5.4988]
[1723846056406,0.18664358,2604.4,2604.3,8.4988]
[1723846056790,0.18664358,2604.4,2604.3,12.3386]
[1723846057814,0.80549692,2605.0,2604.9,3.83891]
[1723846057971,0.80549692,2605.0,2604.9,8.49791]
[1723846058512,0.86389582,2605.0,2604.9,8.49791]
[1723846060289,0.86389582,2605.0,2604.9,12.33682]
[1723846061496,0.86389582,2605.0,2604.9,10.67782]
[1723846061692,1.26670595,2605.0,2604.9,3.0]
[1723846061881,2.2794,2604.9,2604.7,3.0]
[1723846062216,0.86346233,2604.8,2604.6,3.0]
[1723846062418,0.8052823,2604.7,2604.6,3.0]
[1723846062718,0.8052823,2604.7,2604.5,3.0]
[1723846063022,3.0796823,2604.6,2604.5,3.0]
[1723846063182,3.0796823,2604.6,2604.4,7.32]
[1723846063183,4.47108729,2604.6,2604.4,7.32]
[1723846063383,1.75817792,2604.5,2604.4,7.32]
[1723846063784,1.81600012,2604.5,2604.4,7.32]
[1723846064524,0.6078222,2604.5,2604.4,10.32]
[1723846065026,2.50363036,2604.5,2604.4,10.32]
[1723846065209,1.81606066,2604.5,2604.4,10.32]
[1723846065710,1.81606066,2604.5,2604.4,3.0]
[1723846065912,1.81606066,2604.5,2604.2,6.83992]
[1723846066208,0.80550567,2604.4,2604.2,6.83992]
[1723846066410,0.8632068,2604.4,2604.2,6.83992]
[1723846067632,0.80550567,2604.3,2604.2,6.83992]
[1723846067837,1.26593959,2604.4,2604.2,6.83992]
[1723846068040,0.86318233,2604.3,2604.2,6.83988]
[1723846069614,0.99013853,2604.3,2604.2,6.83988]
[1723846070332,0.05758392,2604.3,2604.2,10.67983]
[1723846070831,0.80559841,2604.6,2604.5,3.8395]
[1723846071013,0.93253592,2604.6,2604.5,6.8395]
[1723846071690,0.93253351,2604.6,2604.5,6.8395]
[1723846072307,0.1269351,2604.6,2604.5,6.8395]
[1723846072629,0.1269351,2604.6,2604.5,12.9436]
[1723846073026,0.18486492,2604.6,2604.5,12.9436]
[1723846073600,0.05792982,2604.6,2604.5,12.9436]
[1723846074098,0.80559841,2604.9,2604.8,3.83906]
[1723846074299,0.1269236,2604.9,2604.8,6.83906]
[1723846074534,1.33516206,2604.9,2604.8,6.83906]
[1723846074907,4.41314181,2604.9,2604.8,3.0]
[1723846075220,4.56267247,2604.9,2604.6,3.0]
[1723846075409,0.8056784,2604.7,2604.6,3.0]
[1723846075613,0.93261344,2604.7,2604.6,6.83936]
[1723846075807,0.8056784,2604.7,2604.6,6.83936]
[1723846075997,0.93261458,2604.7,2604.6,6.83936]
[1723846076396,0.93263337,2604.7,2604.6,6.83936]
[1723846076598,0.18499315,2604.7,2604.6,6.83936]
[1723846076892,0.9907174,2604.7,2604.6,6.83936]
[1723846078124,0.99073843,2604.7,2604.6,6.83936]
[1723846078319,0.99073749,2604.7,2604.6,6.83936]
[1723846078530,0.18499315,2604.7,2604.6,6.83936]
[1723846078836,0.99076059,2604.7,2604.6,6.83936]
[1723846079026,0.18499315,2604.7,2604.6,6.83936]
[1723846079226,0.99076672,2604.7,2604.6,6.83936]
[1723846079648,0.18499315,2604.7,2604.6,3.0]
[1723846079801,0.18499441,2604.7,2604.6,3.0]
[1723846080005,0.99075123,2604.7,2604.6,3.0]
[1723846080500,1.39350856,2604.7,2604.6,3.0]
[1723846081154,3.96157804,2604.7,2604.6,3.0]
[1723846081305,1.39367372,2604.7,2604.3,3.0]
[1723846081624,1.39367372,2604.7,2604.6,3.83936]
[1723846081625,0.86380508,2604.7,2604.6,3.83936]
[1723846081814,0.99073632,2604.7,2604.6,6.83936]
[1723846082602,0.05805697,2604.7,2604.6,6.83936]
[1723846082798,0.18498592,2604.7,2604.6,6.83936]
[1723846083727,0.99073403,2604.7,2604.6,6.83936]
[1723846086806,0.86380508,2604.7,2604.6,6.83936]
[1723846087007,0.99073825,2604.7,2604.6,6.83936]
[1723846087207,0.18499014,2604.7,2604.6,6.83936]
[1723846087746,0.99073825,2604.7,2604.6,6.83936]
[1723846091121,0.99073732,2604.7,2604.6,6.83936]
[1723846092863,0.18498921,2604.7,2604.6,6.83936]
[1723846093040,0.99082082,2604.7,2604.6,6.83936]
[1723846093360,0.18498921,2604.7,2604.6,6.83936]
[1723846093565,0.99082599,2604.7,2604.6,6.83936]
[1723846094244,1.39367198,2604.7,2604.6,6.83936]
[1723846094441,0.99085968,2604.7,2604.6,6.83936]
[1723846094770,1.39367198,2604.7,2604.6,6.83936]
[1723846095272,1.39367583,2604.7,2604.6,3.0]
[1723846096052,2.30994581,2604.7,2604.6,3.0]
[1723846096238,2.30994581,2604.7,2604.1,3.84001]
[1723846096239,2.465,2604.6,2604.1,3.84001]
[1723846096437,0.80603227,2604.3,2604.1,3.84001]
[1723846096651,0.93296836,2604.2,2604.1,3.84001]
[1723846096860,2.465,2604.1,2603.9,4.03160282]
[1723846097172,0.12693609,2604.0,2603.9,4.03160282]
[1723846097465,0.99020297,2604.0,2603.7,3.84064]
[1723846097665,0.93296836,2603.9,2603.6,3.8756622]
[1723846097877,0.12693609,2603.8,2603.6,3.8756622]
[1723846098033,0.12693609,2603.7,2603.6,3.8756622]
[1723846098459,0.1838167,2603.7,2603.6,3.8756622]
[1723846098731,0.1838167,2603.7,2603.6,0.22534747]
[1723846098927,0.1838167,2603.7,2603.6,0.0348622]
[1723846099172,2.52188061,2603.7,2603.6,0.0348622]
[1723846099373,2.64886455,2603.7,2603.6,0.0348622]
[1723846099970,0.73386455,2603.7,2603.6,0.0348622]
[1723846100182,5.68637702,2603.7,2603.6,0.0348622]
[1723846100334,4.81092909,2603.7,2603.6,0.0348622]
[1723846101034,4.40727325,2603.7,2603.6,0.0348622]
[1723846101234,4.0040493,2603.7,2603.6,0.0348622]
[1723846101532,4.40727325,2603.7,2603.6,0.0348622]
[1723846101884,5.28061927,2603.7,2603.6,0.0348622]
[1723846102046,4.07221057,2603.7,2603.6,0.0348622]
[1723846102587,5.28061927,2603.7,2603.6,0.0348622]
[1723846102938,5.15363533,2603.7,2603.6,0.0348622]
[1723846103234,5.280636,2603.7,2603.6,0.0348622]
[1723846103573,5.68429184,2603.7,2603.6,0.0348622]
[1723846103893,6.08634971,2603.7,2603.6,0.0348622]
[1723846104036,4.0722273,2603.7,2603.6,0.0348622]
[1723846104364,6.08634971,2603.7,2603.6,0.0348622]
[1723846104731,4.0722273,2603.7,2603.6,0.0348622]
[1723846105085,5.68030984,2603.7,2603.6,0.0348622]
[1723846105579,5.69379627,2603.7,2603.6,0.0348622]
[1723846105793,5.29125896,2603.7,2603.6,0.0348622]
[1723846106097,5.69379627,2603.7,2603.6,0.0348622]
[1723846106440,4.88937558,2603.7,2603.6,0.0348622]
[1723846106671,5.29125394,2603.7,2603.6,0.0348622]
[1723846106848,4.08572815,2603.7,2603.6,0.0348622]
[1723846107077,4.88917072,2603.7,2603.6,0.0348622]
[1723846107270,4.88916985,2603.7,2603.6,0.0348622]
[1723846107494,5.29125394,2603.7,2603.6,0.0348622]
[1723846107702,9.53447627,2603.7,2603.6,0.0348622]
[1723846107848,5.69379627,2603.7,2603.6,0.0348622]
[1723846108053,4.08572815,2603.7,2603.6,0.0348622]
[1723846108254,9.94053056,2603.7,2603.6,0.0348622]
[1723846108553,9.38617942,2603.7,2603.6,0.0348622]
[1723846108754,4.08572815,2603.7,2603.6,0.0348622]
[1723846108981,5.69161438,2603.7,2603.6,0.0348622]
[1723846109502,6.79461999,2603.7,2603.6,0.0348622]
[1723846109860,5.59075257,2603.7,2603.6,0.0348622]
[1723846110061,6.79458294,2603.7,2603.6,0.0348622]
[1723846110458,6.79459981,2603.7,2603.6,0.0348622]
[1723846110831,6.39302155,2603.7,2603.6,0.0348622]
[1723846111011,6.79459981,2603.7,2603.6,0.0348622]
[1723846111694,5.28957539,2603.7,2603.6,0.0348622]
[1723846112093,6.77605921,2603.7,2603.6,0.0348622]
[1723846112420,4.8877458,2603.7,2603.6,0.0348622]
[1723846112778,4.08574502,2603.7,2603.6,0.0348622]
[1723846113113,4.88754726,2603.7,2603.6,0.0348622]
[1723846113824,4.08574502,2603.7,2603.6,0.0348622]
[1723846115245,0.197399,2603.7,2603.6,0.0348622]
[1723846115453,0.05688061,2603.7,2603.6,7.7165222]
[1723846115598,3.65243037,2604.5,2603.8,3.84042]
[1723846115599,2.4486,2604.5,2603.8,3.84042]
[1723846115934,0.05237579,2604.4,2603.9,3.0]
[1723846116090,0.17934619,2604.4,2603.9,3.0]
[1723846116286,0.05237579,2604.4,2603.9,3.0]
[1723846116520,0.1269683,2604.3,2603.9,6.8403]
[1723846116720,0.05237579,2604.4,2603.9,6.8403]
[1723846116925,0.050071,2604.2,2603.9,6.8403]
[1723846117226,0.5999545,2604.1,2603.9,3.0]
[1723846117428,0.55,2604.0,2603.9,0.684058]
[1723846117619,0.599838,2604.0,2603.9,0.684058]
[1723846118318,0.599838,2604.0,2603.8,6.84052]
[1723846118505,0.55,2604.0,2603.8,6.84045]
[1723846118704,0.55,2604.2,2603.9,3.84039]
[1723846118905,2.4486,2604.5,2604.0,3.0]
[1723846119119,0.04995817,2604.1,2604.0,3.84011]
[1723846119431,2.4486,2604.5,2604.0,6.84011]
[1723846119596,2.4486,2604.5,2604.1,3.0]
[1723846119797,0.05030763,2604.4,2604.1,3.0]
[1723846120000,0.17726702,2604.4,2604.1,6.84008]
[1723846120230,0.12697008,2604.3,2604.1,6.84008]
[1723846120528,0.05030763,2604.4,2604.1,6.84008]
[1723846120695,0.05007467,2604.2,2604.1,6.84008]
[1723846121032,2.4486,2604.5,2604.1,10.68016]
[1723846121330,0.67696729,2604.4,2604.1,6.84002]
[1723846121494,0.12696729,2604.3,2604.1,6.84002]
[1723846121697,0.60030763,2604.4,2604.1,6.84002]
[1723846121918,0.05007837,2604.2,2604.1,6.84002]
[1723846122139,0.55,2604.4,2604.1,6.84002]
[1723846122340,0.12696463,2604.3,2604.1,6.84002]
[1723846122545,0.12696463,2604.2,2604.1,6.84002]
[1723846122754,0.05019485,2604.3,2604.1,6.84002]
[1723846122929,0.05007837,2604.2,2604.1,6.84002]
[1723846123360,0.12696601,2604.2,2604.1,6.84002]
[1723846123662,0.17704438,2604.2,2604.1,6.84002]
[1723846126859,0.72704438,2604.2,2604.1,3.0]
[1723846127066,2.3834,2604.1,2603.6,6.8756122]
[1723846127273,0.67696601,2604.0,2603.6,6.8756122]
[1723846127487,0.12696601,2603.9,2603.6,6.8756122]
[1723846127634,0.67698557,2603.8,2603.6,6.8756122]
[1723846127836,0.12698557,2603.7,2603.6,6.8756122]
[1723846128074,0.17641368,2603.7,2603.6,6.8756122]
[1723846128474,0.04942811,2603.7,2603.6,6.8756122]
[1723846128973,0.55,2603.8,2603.6,6.8756122]
[1723846129181,0.04942811,2603.7,2603.6,6.8756122]
[1723846129533,0.55,2604.0,2603.6,6.8756122]
[1723846129761,0.12698092,2603.9,2603.6,6.8756122]
[1723846130067,0.7265228,2603.8,2603.6,3.0348622]
[1723846130386,0.55,2603.7,2603.6,3.0348622]
[1723846130727,0.67698113,2603.7,2603.6,3.0348622]
[1723846131000,0.72640647,2603.7,2603.6,3.0348622]
[1723846131200,0.72640647,2603.7,2603.6,0.0348622]
[1723846131493,3.10980647,2603.7,2603.6,3.0348622]
[1723846131700,3.4921372,2603.7,2603.6,0.0348622]
[1723846132703,4.29393944,2603.7,2603.6,0.0348622]
[1723846132880,4.29396633,2603.7,2603.6,0.0348622]
[1723846133498,3.49216409,2603.7,2603.6,0.0348622]
[1723846134903,4.29396633,2603.7,2603.6,0.0348622]
[1723846135573,3.10983336,2603.7,2603.6,0.0348622]
[1723846135789,0.72643336,2603.7,2603.6,0.0348622]
[1723846136806,0.72641976,2603.7,2603.6,0.0348622]
[1723846137499,0.17641976,2603.7,2603.6,3.8756922]
[1723846137805,0.17641976,2603.7,2603.6,6.8756922]
[1723846139572,0.17641976,2603.7,2603.6,10.7165222]
[1723846139774,0.17641976,2603.7,2603.6,13.0845222]
[1723846140498,0.17641976,2603.7,2603.6,9.2436922]
[1723846140802,0.04942534,2603.7,2603.6,9.2436922]
[1723846141007,0.176404,2603.7,2603.6,13.0845222]
[1723846141213,0.04942534,2603.7,2603.6,13.0845222]
[1723846141504,0.80180224,2604.2,2603.9,3.84031]
[1723846141694,0.67696728,2604.1,2604.0,3.0]
[1723846141894,0.72348984,2604.1,2604.0,3.0]
[1723846142101,1.52529208,2604.1,2604.0,3.0]
[1723846142296,0.72348984,2604.1,2604.0,3.0]
[1723846142488,1.52529208,2604.1,2604.0,3.0]
[1723846143193,0.97529208,2604.1,2604.0,11.364511]
[1723846143385,0.80180224,2604.5,2604.4,7.6793]